fUST/lending_fUST_20250503
["ID","MTS","AMOUNT","RATE_DAILY","PERIOD"]
[359676444,1746244028229,-511.00655017,0.00018999,2]
[359676445,1746244028252,-183.61975808,0.00018999,2]
[359676446,1746244028279,-500.0,0.00018999,2]
[359676447,1746244028305,-500.0,0.00018999,2]
[359676448,1746244028330,-500.0,0.00018999,2]
[359676449,1746244028355,-500.0,0.00018999,2]
[359676450,1746244028379,-500.0,0.00018999,2]
[359676451,1746244028404,-500.0,0.00018999,2]
[359676452,1746244028431,-193.5181118,0.00018999,2]
[359676453,1746244028458,-500.0,0.00018999,2]
[359676454,1746244028480,-3169.86458274,0.00019,2]
[359676455,1746244028500,-1313.0,0.00019,2]
[359676456,1746244028522,-703.0,0.00019,2]
[359676457,1746244028543,-1551.0,0.00019,2]
[359676458,1746244028564,-1472.0,0.00019,2]
[359676459,1746244028585,-303.0,0.00019,2]
[359676460,1746244028606,-4287.0,0.00019,2]
[359676461,1746244028630,-1371.86595132,0.00019,2]
[359676462,1746244028652,-1328.0,0.00019,2]
[359676463,1746244028674,-677.0,0.00019,2]
[359676464,1746244028697,-5621.56331461,0.00019,2]
[359676465,1746244028718,-5621.56331458,0.0001902,2]
[359676466,1746244028741,-307.47552824,0.0001903,2]
[359676467,1746244028761,-161.376607,0.00019039,2]
[359676468,1746244028782,-161.376607,0.00019039,2]
[359676469,1746244028806,-5621.56331458,0.00019039,2]
[359676470,1746244028829,-5621.56331458,0.00019059,2]
[359676471,1746244028850,-166.9,0.00019073,2]
[359676472,1746244028870,-166.9,0.00019073,2]
[359676473,1746244028895,-166.9,0.00019073,2]
[359676474,1746244028916,-166.9,0.00019073,2]
[359676475,1746244028940,-166.9,0.00019073,2]
[359676476,1746244028963,-500.0,0.00019073,2]
[359676477,1746244028984,-500.0,0.00019073,2]
[359676478,1746244029005,-212.64249238,0.00019073,2]
[359676479,1746244029026,-500.0,0.00019073,2]
[359676480,1746244029047,-501.54072291,0.00019073,2]
[359676481,1746244029069,-500.0,0.00019073,2]
[359676482,1746244029091,-307.65463756,0.00019077,2]
[359676483,1746244029111,-161.376607,0.00019078,2]
[359676484,1746244029134,-161.376607,0.00019078,2]
[359676485,1746244029155,-5621.56331458,0.00019078,2]
[359676486,1746244029176,-554.254,0.00019079,2]
[359676487,1746244029197,-712.059,0.00019079,2]
[359676488,1746244029218,-2244.0,0.00019079,2]
[359676489,1746244029239,-403.0,0.00019079,2]
[359676490,1746244029260,-403.0,0.00019079,2]
[359676491,1746244029280,-151.0,0.00019089,2]
[359676492,1746244029301,-1374.11,0.0001909,3]
[359676493,1746244029321,-902.28,0.0001909,3]
[359676494,1746244029342,-451.14,0.0001909,3]
[359676495,1746244029362,-225.57,0.0001909,3]
[359676496,1746244029383,-676.72,0.0001909,3]
[359676497,1746244029404,-1002.88431799,0.0001909,5]
[359676498,1746244029424,-3169.5,0.00019099,2]
[359676499,1746244029447,-161.376607,0.00019099,2]
[359676500,1746244029467,-161.376607,0.00019099,2]
[359676501,1746244029487,-160.86072009,0.00019099,2]
[359676502,1746244029508,-162117.03865624,0.000191,2]
[359676503,1746244029528,-161.376607,0.000191,2]
[359676504,1746244029548,-161.376607,0.000191,2]
[359676505,1746244029568,-310.0,0.0001912,2]
[359676506,1746244029589,-7554.26309462,0.00019129,2]
[359676507,1746244029609,-161.376607,0.00019142,2]
[359676508,1746244029630,-161.376607,0.00019142,2]
[359676509,1746244029650,-150.262,0.00019143,2]
[359676510,1746244029673,-150.258,0.00019143,2]
[359676511,1746244029698,-218.335,0.00019143,2]
[359676512,1746244029723,-160.039,0.0001917,2]
[359676513,1746244029746,-500.0,0.00019173,2]
[359676514,1746244029767,-500.79141894,0.00019173,2]
[359676515,1746244029849,-500.0,0.00019173,2]
[359676516,1746244029870,-502.20312031,0.00019173,2]
[359676517,1746244029891,-500.0,0.00019173,2]
[359676518,1746244029911,-500.0,0.00019173,2]
[359676519,1746244029930,-614.81908692,0.00019173,2]
[359676520,1746244029949,-151.85745163,0.00019173,2]
[359676521,1746244029969,-501.31489611,0.00019173,2]
[359676522,1746244029989,-500.0,0.00019173,2]
[359676523,1746244030009,-270.3586615,0.00019173,2]
[359676524,1746244030030,-500.0,0.00019173,2]
[359676525,1746244030051,-532.19560691,0.00019173,2]
[359676526,1746244030072,-500.0,0.00019173,2]
[359676527,1746244030091,-500.0,0.00019173,2]
[359676528,1746244030112,-500.0,0.00019173,2]
[359676529,1746244030132,-500.0,0.00019173,2]
[359676530,1746244030152,-500.25379618,0.00019173,2]
[359676531,1746244030173,-500.0,0.00019173,2]
[359676532,1746244030195,-500.0,0.00019173,2]
[359676533,1746244030215,-500.0,0.00019173,2]
[359676534,1746244030237,-500.0,0.00019173,2]
[359676535,1746244030258,-512.7897516,0.00019173,2]
[359676536,1746244030277,-500.0,0.00019173,2]
[359676537,1746244030297,-500.0,0.00019173,2]
[359676538,1746244030317,-500.0,0.00019173,2]
[359676539,1746244030337,-500.0,0.00019173,2]
[359676540,1746244030356,-500.0,0.00019173,2]
[359676541,1746244030376,-500.0,0.00019173,2]
[359676542,1746244030396,-490.77267241,0.00019173,2]
[359676543,1746244030417,-161.376607,0.00019173,2]
[359676544,1746244030436,-161.376607,0.00019173,2]
[359676545,1746244030457,-929.424125,0.00019173,2]
[359676546,1746244030476,-929.424125,0.00019173,2]
[359676547,1746244030497,-400.0,0.00019178,2]
[359676548,1746244030517,-161.376607,0.00019178,2]
[359676549,1746244030537,-161.376607,0.00019178,2]
[359676550,1746244030558,-161.376607,0.00019178,2]
[359676551,1746244030578,-161.376607,0.00019178,2]
[359676552,1746244030598,-161.376607,0.00019178,2]
[359676553,1746244030618,-161.376607,0.00019178,2]
[359676554,1746244030639,-161.376607,0.00019178,2]
[359676555,1746244030658,-161.376603,0.00019178,2]
[359676556,1746244030678,-400.0,0.00019178,2]
[359676557,1746244030697,-400.0,0.00019178,2]
[359676558,1746244030718,-400.0,0.00019178,2]
[359676559,1746244030736,-400.0,0.00019178,2]
[359676560,1746244030756,-400.0,0.00019178,2]
[359676561,1746244030778,-400.0,0.00019178,2]
[359676562,1746244030802,-232.21,0.00019178,2]
[359676563,1746244030822,-400.0,0.00019178,2]
[359676564,1746244030842,-400.0,0.00019178,2]
[359676565,1746244030863,-400.0,0.00019178,2]
[359676566,1746244030886,-402.1342431,0.00019178,2]
[359676567,1746244030908,-401.49548055,0.00019178,2]
[359676568,1746244030930,-401.31841447,0.00019178,2]
[359676569,1746244030951,-407.3208452,0.00019178,2]
[359676570,1746244030972,-400.0,0.00019178,2]
[359676571,1746244030993,-510.22529435,0.00019178,2]
[359676572,1746244031013,-154.78606792,0.00019178,2]
[359676573,1746244031034,-400.0,0.00019178,2]
[359676574,1746244031054,-400.0,0.00019178,2]
[359676575,1746244031074,-400.0,0.00019178,2]
[359676576,1746244031095,-207.56471358,0.00019178,2]
[359676577,1746244031116,-403.87608503,0.00019178,2]
[359676578,1746244031137,-403.10134657,0.00019178,2]
[359676579,1746244031158,-401.52530454,0.00019178,2]
[359676580,1746244031177,-400.0,0.00019178,2]
[359676581,1746244031198,-408.19160653,0.00019178,2]
[359676582,1746244031218,-400.0,0.00019178,2]
[359676583,1746244031239,-400.0,0.00019178,2]
[359676584,1746244031259,-283.71146016,0.00019178,2]
[359676585,1746244031280,-400.0,0.00019178,2]
[359676586,1746244031300,-444.6,0.00019178,2]
[359676587,1746244031321,-400.0,0.00019178,2]
[359676588,1746244031342,-400.0,0.00019178,2]
[359676589,1746244031363,-400.0,0.00019178,2]
[359676590,1746244031384,-400.0,0.00019178,2]
[359676591,1746244031405,-493.78,0.00019178,2]
[359676592,1746244031425,-802.48,0.00019178,2]
[359676593,1746244031447,-400.0,0.00019178,2]
[359676594,1746244031467,-400.0,0.00019178,2]
[359676595,1746244031489,-408.03800038,0.00019178,2]
[359676596,1746244031511,-448.82,0.00019178,2]
[359676597,1746244031532,-400.0,0.00019178,2]
[359676598,1746244031552,-1659.76,0.00019178,2]
[359676599,1746244031573,-400.0,0.00019178,2]
[359676600,1746244031593,-400.0,0.00019178,2]
[359676601,1746244031614,-401.52,0.00019178,2]
[359676602,1746244031634,-400.0,0.00019178,2]
[359676603,1746244031653,-929.424125,0.00019178,2]
[359676604,1746244031675,-929.424125,0.00019178,2]
[359676605,1746244031696,-929.424125,0.00019178,2]
[359676606,1746244031716,-929.424125,0.00019178,2]
[359676607,1746244031736,-929.424125,0.00019178,2]
[359676608,1746244031755,-658.75,0.00019178,2]
[359676609,1746244031775,-929.424125,0.00019178,2]
[359676610,1746244031798,-929.424125,0.00019178,2]
[359676611,1746244031818,-929.424125,0.00019178,2]
[359676612,1746244031840,-929.424125,0.00019178,2]
[359676613,1746244031863,-400.0,0.00019178,2]
[359676614,1746244031888,-512.72,0.00019178,2]
[359676615,1746244031909,-929.424125,0.00019178,2]
[359676616,1746244031931,-729.25,0.00019178,2]
[359676617,1746244031951,-545.62,0.00019178,2]
[359676618,1746244031972,-400.0,0.00019178,2]
[359676619,1746244031992,-400.0,0.00019178,2]
[359676620,1746244032015,-408.33961949,0.00019178,2]
[359676621,1746244032035,-400.0,0.00019178,2]
[359676622,1746244032056,-405.35810247,0.00019178,2]
[359676623,1746244032076,-304.91783303,0.00019178,2]
[359676624,1746244032098,-400.0,0.00019178,2]
[359676625,1746244032118,-400.0,0.00019178,2]
[359676626,1746244032139,-395.11581609,0.00019178,2]
[359676627,1746244032159,-400.0,0.00019178,2]
[359676628,1746244032179,-400.0,0.00019178,2]
[359676629,1746244032199,-500.0,0.00019178,2]
[359676630,1746244032219,-500.0,0.00019178,2]
[359676631,1746244032240,-500.0,0.00019178,2]
[359676632,1746244032260,-476.3,0.00019178,2]
[359676633,1746244032280,-151.0,0.00019178,2]
[359676634,1746244032300,-151.61543992,0.00019178,2]
[359676635,1746244032320,-500.0,0.00019178,2]
[359676636,1746244032340,-151.56533223,0.00019178,2]
[359676637,1746244032361,-575.7,0.00019178,2]
[359676638,1746244032382,-151.0,0.00019178,2]
[359676639,1746244032402,-400.0,0.00019178,2]
[359676640,1746244032424,-187.95017584,0.00019178,2]
[359676641,1746244032445,-400.0,0.00019178,2]
[359676642,1746244032466,-531.9,0.00019178,2]
[359676643,1746244032487,-400.0,0.00019178,2]
[359676644,1746244032506,-400.0,0.00019178,2]
[359676645,1746244032527,-400.0,0.00019178,2]
[359676646,1746244032547,-400.0,0.00019178,2]
[359676647,1746244032567,-400.0,0.00019178,2]
[359676648,1746244032587,-400.0,0.00019178,2]
[359676649,1746244032607,-200.78472959,0.00019178,2]
[359676650,1746244032627,-400.0,0.00019178,2]
[359676651,1746244032648,-410.53092615,0.00019178,2]
[359676652,1746244032669,-400.0,0.00019178,2]
[359676653,1746244032689,-400.0,0.00019178,2]
[359676654,1746244032711,-597.74,0.00019178,2]
[359676655,1746244032732,-617.85,0.00019178,2]
[359676656,1746244032753,-400.0,0.00019178,2]
[359676657,1746244032773,-400.0,0.00019178,2]
[359676658,1746244032796,-151.0,0.00019178,2]
[359676659,1746244032817,-400.0,0.00019178,2]
[359676660,1746244032837,-400.0,0.00019178,2]
[359676661,1746244032861,-151.0,0.00019178,2]
[359676662,1746244032883,-214.59395697,0.00019178,2]
[359676663,1746244032905,-400.0,0.00019178,2]
[359676664,1746244032929,-400.0,0.00019178,2]
[359676665,1746244032952,-500.0,0.00019178,2]
[359676666,1746244032973,-535.3,0.00019178,2]
[359676667,1746244032995,-400.0,0.00019178,2]
[359676668,1746244033017,-529.11,0.00019178,2]
[359676669,1746244033037,-400.0,0.00019178,2]
[359676670,1746244033059,-151.0,0.00019178,2]
[359676671,1746244033081,-151.0,0.00019178,2]
[359676672,1746244033102,-151.0,0.00019178,2]
[359676673,1746244033122,-151.0,0.00019178,2]
[359676674,1746244033144,-420.15463586,0.00019178,2]
[359676675,1746244033164,-151.0,0.00019178,2]
[359676676,1746244033185,-151.0,0.00019178,2]
[359676677,1746244033206,-151.0,0.00019178,2]
[359676678,1746244033227,-151.0,0.00019178,2]
[359676679,1746244033248,-151.0,0.00019178,2]
[359676680,1746244033269,-185.519752,0.00019178,2]
[359676681,1746244033291,-1815.64,0.00019178,2]
[359676682,1746244033312,-400.0,0.00019178,2]
[359676683,1746244033334,-400.0,0.00019178,2]
[359676684,1746244033357,-1141.92,0.00019178,2]
[359676685,1746244033378,-400.0,0.00019178,2]
[359676686,1746244033401,-400.0,0.00019178,2]
[359676687,1746244033424,-400.0,0.00019178,2]
[359676688,1746244033445,-400.0,0.00019178,2]
[359676689,1746244033467,-400.0,0.00019178,2]
[359676690,1746244033488,-545.98,0.00019178,2]
[359676691,1746244033509,-416.97349749,0.00019178,2]
[359676692,1746244033531,-400.0,0.00019178,2]
[359676693,1746244033552,-842.36,0.00019178,2]
[359676694,1746244033573,-420.55239434,0.00019178,2]
[359676695,1746244033594,-1337.35,0.00019178,2]
[359676696,1746244033616,-411.66,0.00019178,2]
[359676697,1746244033637,-400.0,0.00019178,2]
[359676698,1746244033657,-1499.87,0.00019178,2]
[359676699,1746244033680,-3402.24,0.00019178,2]
[359676700,1746244033701,-400.0,0.00019178,2]
[359676701,1746244033721,-1234.54,0.00019178,2]
[359676702,1746244033743,-400.0,0.00019178,2]
[359676703,1746244033765,-561.66,0.00019178,2]
[359676704,1746244033786,-485.0,0.00019178,2]
[359676705,1746244033813,-813.41,0.00019178,2]
[359676706,1746244033835,-1189.15,0.00019178,2]
[359676707,1746244033856,-400.0,0.00019178,2]
[359676708,1746244033878,-408.3,0.00019178,2]
[359676709,1746244033899,-547.36,0.00019178,2]
[359676710,1746244033920,-657.53,0.00019178,2]
[359676711,1746244033942,-400.0,0.00019178,2]
[359676712,1746244033965,-410.86,0.00019178,2]
[359676713,1746244033986,-1157.33,0.00019178,2]
[359676714,1746244034007,-1536.24,0.00019178,2]
[359676715,1746244034029,-400.0,0.00019178,2]
[359676716,1746244034051,-1434.45,0.00019178,2]
[359676717,1746244034073,-400.0,0.00019178,2]
[359676718,1746244034095,-400.0,0.00019178,2]
[359676719,1746244034117,-1193.52,0.00019178,2]
[359676720,1746244034139,-7.2684762,0.00019178,2]
[359676723,1746244129215,635.77558476,0.00015956,2]
[359676724,1746244129572,635.77558476,0.00016178,2]
[359676725,1746244129875,635.77558476,0.00016672,2]
[359676726,1746244130184,635.77558476,0.00016812,2]
[359676727,1746244130508,226.10694308,0.00017116,2]
[359676728,1746244130535,409.66864168,0.00017116,2]
[359676729,1746244130818,635.77558476,0.00017494,2]
[359676730,1746244131163,635.77558476,0.00017611,2]
[359676731,1746244131419,635.77558476,0.00017953,2]
[359676775,1746244232497,-3039.484356,0.00018206,2]
[359676776,1746244232508,-691.0,0.00018206,2]
[359676777,1746244232519,-635.77558476,0.00018315,2]
[359676778,1746244232530,-635.77558476,0.00018448,2]
[359676779,1746244232541,-635.77558476,0.00018801,2]
[359676780,1746244232552,-150.0,0.000189,2]
[359676781,1746244232563,-1700.0,0.00018972,2]
[359676782,1746244232574,-365.5932962,0.00018986,2]
[359676783,1746244232585,-635.77558476,0.00019015,2]
[359676784,1746244232595,-744.40658733,0.00019078,2]
[359676785,1746244232606,-2288.40322049,0.00019078,2]
[359676786,1746244232618,-151.0,0.00019166,2]
[359676787,1746244232629,-215.35824629,0.00019177,2]
[359676788,1746244232639,-523.77,0.00019178,2]
[359676789,1746244232650,-400.0,0.00019178,2]
[359676790,1746244232660,-407.22930495,0.00019178,2]
[359676791,1746244232672,-426.91,0.00019178,2]
[359676792,1746244232682,-841.0,0.00019178,2]
[359676793,1746244232693,-400.0,0.00019178,2]
[359676794,1746244232703,-400.0,0.00019178,2]
[359676795,1746244232714,-905.61,0.00019178,2]
[359676796,1746244232725,-400.0,0.00019178,2]
[359676797,1746244232735,-400.0,0.00019178,2]
[359676798,1746244232746,-400.0,0.00019178,2]
[359676799,1746244232756,-673.39,0.00019178,2]
[359676800,1746244232767,-400.0,0.00019178,2]
[359676801,1746244232777,-424.84,0.00019178,2]
[359676802,1746244232788,-400.0,0.00019178,2]
[359676803,1746244232799,-400.0,0.00019178,2]
[359676804,1746244232809,-3225.9,0.00019178,2]
[359676805,1746244232820,-400.0,0.00019178,2]
[359676806,1746244232831,-512.69,0.00019178,2]
[359676807,1746244232844,-408.75353978,0.00019178,2]
[359676808,1746244232855,-400.0,0.00019178,2]
[359676809,1746244232866,-400.0,0.00019178,2]
[359676810,1746244232876,-503.93,0.00019178,2]
[359676811,1746244232886,-400.0,0.00019178,2]
[359676812,1746244232896,-508.64,0.00019178,2]
[359676813,1746244232907,-430.68,0.00019178,2]
[359676814,1746244232917,-500.0,0.00019178,2]
[359676815,1746244232927,-400.0,0.00019178,2]
[359676816,1746244232938,-408.9382936,0.00019178,2]
[359676817,1746244232948,-159.67742251,0.00019178,2]
[359676818,1746244232958,-400.0,0.00019178,2]
[359676819,1746244232968,-400.0,0.00019178,2]
[359676820,1746244232978,-400.0,0.00019178,2]
[359676821,1746244232989,-400.0,0.00019178,2]
[359676822,1746244233000,-1179.77,0.00019178,2]
[359676823,1746244233011,-400.0,0.00019178,2]
[359676824,1746244233021,-400.0,0.00019178,2]
[359676825,1746244233031,-400.0,0.00019178,2]
[359676826,1746244233043,-400.0,0.00019178,2]
[359676827,1746244233053,-2501.43,0.00019178,2]
[359676828,1746244233063,-460.68,0.00019178,2]
[359676829,1746244233074,-502.79616661,0.00019178,2]
[359676830,1746244233085,-405.39,0.00019178,2]
[359676831,1746244233096,-400.0,0.00019178,2]
[359676832,1746244233106,-783.5,0.00019178,2]
[359676833,1746244233117,-795.97269034,0.00019178,2]
[359676834,1746244233131,-622.79730966,0.00019178,2]
[359676835,1746244233141,-4090.04,0.00019178,2]
[359676836,1746244233152,-948.49,0.00019178,2]
[359676837,1746244233162,-487.77975066,0.00019178,2]
[359676838,1746244233173,-400.0,0.00019178,2]
[359676839,1746244233184,-630.13,0.00019178,2]
[359676840,1746244233194,-400.0,0.00019178,2]
[359676841,1746244233205,-151.0,0.00019178,2]
[359676842,1746244233216,-265.46753474,0.00019178,2]
[359676843,1746244233227,-400.0,0.00019178,2]
[359676844,1746244233238,-500.0,0.00019178,2]
[359676845,1746244233248,-412.75068593,0.00019178,2]
[359676846,1746244233259,-400.0,0.00019178,2]
[359676847,1746244233269,-413.20742523,0.00019178,2]
[359676848,1746244233280,-400.0,0.00019178,2]
[359676849,1746244233291,-400.0,0.00019178,2]
[359676850,1746244233301,-1094.34,0.00019178,2]
[359676851,1746244233311,-981.74,0.00019178,2]
[359676852,1746244233323,-769.05,0.00019178,2]
[359676853,1746244233333,-524.55,0.00019178,2]
[359676854,1746244233344,-1739.99,0.00019178,2]
[359676855,1746244233355,-400.0,0.00019178,2]
[359676856,1746244233365,-523.23,0.00019178,2]
[359676857,1746244233375,-400.0,0.00019178,2]
[359676858,1746244233386,-1437.37,0.00019178,2]
[359676859,1746244233396,-412.96690364,0.00019178,2]
[359676860,1746244233407,-513.95322121,0.00019178,2]
[359676889,1746244238635,-424.44298731,0.00019178,2]
[359676898,1746244238689,-533.83379148,0.00019178,2]
[359676900,1746244238698,-233.70019902,0.00019178,2]
[359676902,1746244238710,-659.85172841,0.00019178,2]
[359676907,1746244238742,-697.05807257,0.00019178,2]
[359676909,1746244238751,-430.12,0.00019178,2]
[359676911,1746244238760,-1266.68,0.00019178,2]
[359676947,1746244239042,-3260.48,0.00019178,2]
[359676950,1746244239065,-282.42475386,0.00019178,2]
[359676952,1746244239079,-566.31,0.00019178,2]
[359676954,1746244239089,-428.41,0.00019178,2]
[359676956,1746244239098,-1139.6,0.00019178,2]
[359676958,1746244239107,-1109.11,0.00019178,2]
[359676960,1746244239117,-400.0,0.00019178,2]
[359676962,1746244239126,-371.76965,0.00019178,2]
[359676964,1746244239135,-101.07212854,0.00019178,2]
[359676994,1746244239401,-270.69752146,0.00019178,2]
[359676996,1746244239411,-400.0,0.00019178,2]
[359676998,1746244239420,-371.76965,0.00019178,2]
[359677000,1746244239430,-371.76965,0.00019178,2]
[359677002,1746244239439,-295.63407066,0.00019178,2]
[359677004,1746244239449,-371.76965,0.00019178,2]
[359677006,1746244239459,-371.76965,0.00019178,2]
[359677008,1746244239469,-371.76965,0.00019178,2]
[359677010,1746244239478,-405.68441603,0.00019178,2]
[359677012,1746244239488,-371.76965,0.00019178,2]
[359677014,1746244239497,-698.86,0.00019178,2]
[359677016,1746244239508,-371.76965,0.00019178,2]
[359677018,1746244239517,-371.76965,0.00019178,2]
[359677020,1746244239526,-371.76965,0.00019178,2]
[359677022,1746244239535,-521.9,0.00019178,2]
[359677024,1746244239544,-1143.79,0.00019178,2]
[359677026,1746244239554,-371.76965,0.00019178,2]
[359677028,1746244239563,-400.0,0.00019178,2]
[359677030,1746244239572,-500.0,0.00019178,2]
[359677032,1746244239582,-400.0,0.00019178,2]
[359677034,1746244239591,-152.21881743,0.00019178,2]
[359677036,1746244239600,-500.0,0.00019178,2]
[359677038,1746244239609,-400.0,0.00019178,2]
[359677040,1746244239619,-1374.68,0.00019178,2]
[359677042,1746244239628,-400.0,0.00019178,2]
[359677044,1746244239637,-491.35,0.00019178,2]
[359677046,1746244239647,-124.76968064,0.00019178,2]
[359677109,1746244240829,-26.23031936,0.00019178,2]
[359677110,1746244240840,-400.0,0.00019178,2]
[359677111,1746244240850,-1177.99,0.00019178,2]
[359677112,1746244240859,-400.0,0.00019178,2]
[359677113,1746244240868,-443.92,0.00019178,2]
[359677114,1746244240878,-746.15,0.00019178,2]
[359677115,1746244240888,-400.0,0.00019178,2]
[359677116,1746244240898,-400.0,0.00019178,2]
[359677117,1746244240908,-522.88,0.00019178,2]
[359677118,1746244240918,-1726.77,0.00019178,2]
[359677119,1746244240927,-417.66,0.00019178,2]
[359677120,1746244240937,-777.14,0.00019178,2]
[359677121,1746244240947,-400.0,0.00019178,2]
[359677122,1746244240956,-400.0,0.00019178,2]
[359677123,1746244240965,-400.0,0.00019178,2]
[359677124,1746244240975,-400.0,0.00019178,2]
[359677125,1746244240985,-400.0,0.00019178,2]
[359677126,1746244240994,-400.0,0.00019178,2]
[359677127,1746244241004,-428.97,0.00019178,2]
[359677128,1746244241013,-1707.32,0.00019178,2]
[359677129,1746244241022,-408.21790492,0.00019178,2]
[359677130,1746244241032,-400.0,0.00019178,2]
[359677131,1746244241041,-400.0,0.00019178,2]
[359677132,1746244241050,-445.24525649,0.00019178,2]
[359677133,1746244241059,-792.59,0.00019178,2]
[359677134,1746244241069,-1248.96,0.00019178,2]
[359677135,1746244241079,-1933.98,0.00019178,2]
[359677136,1746244241088,-434.80844564,0.00019178,2]
[359677137,1746244241098,-549.29,0.00019178,2]
[359677138,1746244241108,-3776.64,0.00019178,2]
[359677139,1746244241119,-400.0,0.00019178,2]
[359677140,1746244241130,-642.4,0.00019178,2]
[359677141,1746244241140,-406.52208953,0.00019178,2]
[359677142,1746244241149,-400.0,0.00019178,2]
[359677143,1746244241159,-1056.2,0.00019178,2]
[359677144,1746244241168,-426.74,0.00019178,2]
[359677145,1746244241178,-912.46,0.00019178,2]
[359677146,1746244241187,-602.66,0.00019178,2]
[359677147,1746244241196,-1424.38,0.00019178,2]
[359677148,1746244241206,-400.0,0.00019178,2]
[359677149,1746244241217,-400.0,0.00019178,2]
[359677150,1746244241226,-509.74,0.00019178,2]
[359677151,1746244241235,-400.0,0.00019178,2]
[359677152,1746244241245,-1209.47,0.00019178,2]
[359677153,1746244241255,-3008.43,0.00019178,2]
[359677154,1746244241265,-1187.66,0.00019178,2]
[359677155,1746244241275,-400.0,0.00019178,2]
[359677156,1746244241284,-400.0,0.00019178,2]
[359677157,1746244241294,-408.55530628,0.00019178,2]
[359677158,1746244241304,-400.0,0.00019178,2]
[359677159,1746244241314,-500.0,0.00019178,2]
[359677160,1746244241324,-500.0,0.00019178,2]
[359677161,1746244241333,-151.5864477,0.00019178,2]
[359677162,1746244241343,-400.0,0.00019178,2]
[359677163,1746244241352,-1130.61,0.00019178,2]
[359677164,1746244241362,-176.48036494,0.00019178,2]
[359677165,1746244241372,-532.984586,0.00019178,2]
[359677166,1746244241382,-500.0,0.0001918,2]
[359677167,1746244241391,-8370.00885254,0.00019198,2]
[359677168,1746244241402,-151.0,0.000192,2]
[359677169,1746244241412,-160.0,0.00019206,2]
[359677170,1746244241424,-160.0,0.00019206,2]
[359677171,1746244241433,-421.66712248,0.00019206,2]
[359677172,1746244241443,-182.16284668,0.00019206,2]
[359677173,1746244241452,-12601.56422439,0.00019206,2]
[359677174,1746244241462,-160.0,0.00019206,2]
[359677175,1746244241471,-160.0,0.00019206,2]
[359677176,1746244241481,-160.0,0.00019206,2]
[359677177,1746244241490,-160.0,0.00019206,2]
[359677178,1746244241500,-160.0,0.00019206,2]
[359677179,1746244241509,-841.47485993,0.00019206,2]
[359677180,1746244241518,-160.0,0.00019206,2]
[359677181,1746244241527,-160.0,0.00019206,2]
[359677182,1746244241537,-151.0,0.00019208,2]
[359677183,1746244241548,-492.18,0.00019219,3]
[359677184,1746244241558,-246.09,0.00019219,3]
[359677185,1746244241567,-738.31,0.00019219,3]
[359677186,1746244241576,-500.000001,0.0001922,2]
[359677187,1746244241586,-500.0,0.0001922,2]
[359677188,1746244241595,-371.76965,0.00019229,2]
[359677189,1746244241605,-371.76965,0.00019229,2]
[359677190,1746244241615,-160.0,0.00019229,3]
[359677191,1746244241627,-12601.56422439,0.00019229,3]
[359677192,1746244241636,-841.47485993,0.00019229,3]
[359677193,1746244241646,-182.16284668,0.00019229,3]